bitfinex/quotes_BTCUSD_20260117
["timestamp","ask_amount","ask_price","bid_price","bid_amount"]
[1768659936675,0.06284947,95348.0,95342.0,0.13756855]
[1768659936877,0.05244105,95346.0,95342.0,0.13756855]
[1768659938198,0.06284947,95348.0,95342.0,0.13756855]
[1768659938429,0.010488,95347.0,95342.0,0.13756855]
[1768659939053,0.06292814,95347.0,95342.0,0.13756855]
[1768659939254,0.01048822,95345.0,95342.0,0.12708]
[1768659939567,0.06292977,95345.0,95342.0,0.12708]
[1768659939761,0.01048822,95345.0,95341.0,0.30530969]
[1768659939996,0.06292961,95345.0,95341.0,0.30530969]
[1768659940220,0.06292961,95345.0,95341.0,0.01048866]
[1768659940429,0.01048844,95343.0,95340.0,0.13756877]
[1768659945115,0.01048833,95344.0,95340.0,0.13756877]
[1768659945331,0.01048844,95343.0,95340.0,0.13756877]
[1768659946377,0.01048844,95343.0,95340.0,0.12708]
[1768659947718,0.06293114,95343.0,95340.0,0.12708]
[1768659948277,0.01048877,95340.0,95337.0,1e-08]
[1768659948726,0.05244485,95339.0,95337.0,1e-08]
[1768659949929,0.01048877,95340.0,95337.0,1e-08]
[1768659952667,0.05244465,95339.0,95337.0,1e-08]
[1768659953495,0.05244498,95338.0,95337.0,1e-08]
[1768659957303,0.06293312,95340.0,95337.0,1e-08]
[1768659957496,0.05244483,95339.0,95337.0,1e-08]
[1768659960490,0.01048877,95340.0,95337.0,1e-08]
[1768659960686,0.06293269,95340.0,95337.0,1e-08]
[1768659962145,0.01048877,95340.0,95337.0,1e-08]
[1768659962377,0.06293304,95340.0,95337.0,1e-08]
[1768659966694,0.01048877,95340.0,95337.0,1e-08]
[1768659967098,0.01048877,95340.0,95337.0,0.01048911]
[1768659968530,0.06293283,95340.0,95337.0,1e-08]
[1768659969961,0.01048844,95343.0,95337.0,0.01048911]
[1768659970182,0.1,95338.0,95337.0,0.06293422]
[1768659972150,0.010488,95347.0,95337.0,0.29476456]
[1768659972371,0.01048767,95350.0,95348.0,0.29476455]
[1768659972577,0.01048756,95351.0,95348.0,0.29471928]
[1768659972783,0.01048756,95351.0,95347.0,0.06292803]
[1768659972992,0.01048756,95351.0,95348.0,0.01048789]
[1768659973408,0.06292462,95353.0,95348.0,0.01048789]
[1768659973620,0.01048701,95356.0,95349.0,0.01048778]
[1768659974358,0.05243663,95354.0,95349.0,0.01048778]
[1768659974611,0.05243581,95355.0,95351.0,0.29476455]
[1768659974944,0.01048756,95351.0,95348.0,0.01048789]
[1768659975232,0.06292549,95351.0,95347.0,0.010488]
[1768659975539,0.01048767,95350.0,95346.0,0.01048811]
[1768659976002,0.01048811,95346.0,95342.0,0.29476455]
[1768659976288,0.01048789,95348.0,95344.0,0.29476455]
[1768659977308,0.01048789,95348.0,95345.0,0.30525277]
[1768659977443,0.01048778,95349.0,95345.0,0.30525277]
[1768659980608,0.01048778,95349.0,95345.0,0.35769386]
[1768659982758,0.01048789,95348.0,95346.0,0.01258574]
[1768659982972,0.01048789,95348.0,95345.0,0.01048822]
[1768659983192,0.01048789,95348.0,95345.0,0.01039769]
[1768659983410,0.01048778,95349.0,95345.0,0.01039769]
[1768659984903,0.01048767,95350.0,95346.0,0.01048811]
[1768659985769,0.01048767,95350.0,95343.0,0.12708]
[1768659985770,0.01048822,95345.0,95343.0,0.12708]
[1768659987786,0.01048822,95345.0,95343.0,0.12646352]
[1768659987975,0.01048855,95342.0,95338.0,0.01048899]
[1768659988178,0.01048855,95342.0,95338.0,0.01054839]
[1768659990017,0.06293233,95341.0,95338.0,5.94e-05]
[1768659990219,0.01048833,95344.0,95338.0,0.01054839]
[1768659990485,0.01048833,95344.0,95340.0,0.06293259]
[1768659990814,0.01048833,95344.0,95340.0,0.01048877]
[1768659991253,0.01048833,95344.0,95341.0,0.01048866]
[1768659991864,0.01048833,95344.0,95341.0,0.01039813]
[1768659992857,0.01048822,95345.0,95341.0,0.01039813]
[1768659993090,0.01048833,95344.0,95341.0,0.01039813]
[1768659995473,0.06293012,95344.0,95340.0,0.01048877]
[1768659995991,0.01048833,95344.0,95340.0,0.01048877]
[1768659997885,0.01048866,95341.0,95338.0,0.01054839]
[1768659998044,0.01048844,95343.0,95339.0,0.01048888]
[1768659998423,0.01048844,95343.0,95339.0,0.06293331]
[1768659999011,0.01048844,95343.0,95339.0,0.01048888]
[1768660000202,0.01048844,95343.0,95340.0,0.01048877]
[1768660000630,0.01048833,95344.0,95340.0,0.06293262]
[1768660001065,0.31410996,95343.0,95333.0,0.12708]
[1768660001271,0.31410996,95343.0,95339.0,0.01048888]
[1768660001272,0.32470253,95343.0,95339.0,0.01048888]
[1768660001686,0.31421409,95343.0,95340.0,0.01048877]
[1768660002708,0.31421409,95343.0,95340.0,0.0629326]
[1768660003165,0.31421409,95343.0,95340.0,0.01048877]
[1768660003502,0.31421409,95343.0,95341.0,0.05244319]
[1768660003702,0.31421409,95343.0,95340.0,0.01048877]
[1768660004421,0.31421409,95343.0,95340.0,0.06293249]
[1768660005614,0.31421409,95343.0,95341.0,0.05244333]
[1768660005815,0.31421409,95343.0,95341.0,0.05235281]
[1768660006396,0.31421409,95343.0,95342.0,0.05244278]
[1768660006823,0.00010413,95343.0,95342.0,0.05244278]
[1768660011566,0.02264769,95351.0,95348.0,0.05243919]
[1768660011738,0.13756734,95353.0,95349.0,0.01048778]
[1768660011930,0.13756734,95353.0,95349.0,0.06283619]
[1768660012312,0.13756734,95353.0,95349.0,0.06088181]
[1768660012696,0.13756734,95353.0,95350.0,0.01048767]
[1768660012897,0.12708,95353.0,95350.0,0.01048767]
[1768660013395,0.12708,95353.0,95349.0,0.00844289]
[1768660014179,0.13756734,95353.0,95349.0,0.00844289]
[1768660015009,0.01048745,95352.0,95348.0,0.01048789]
[1768660015429,0.01048756,95351.0,95348.0,0.01048789]
[1768660015991,0.01048745,95352.0,95348.0,0.01048789]
[1768660016963,0.13756734,95353.0,95349.0,0.01048778]
[1768660017160,0.13756734,95353.0,95348.0,0.01048789]
[1768660017161,0.01048745,95352.0,95347.0,0.010488]
[1768660018234,0.01048745,95352.0,95348.0,0.01048789]
[1768660018850,0.01048745,95352.0,95348.0,0.06292722]
[1768660019370,0.01048745,95352.0,95349.0,0.01048778]
[1768660020473,0.01048745,95352.0,95349.0,0.00688723]
[1768660021528,0.03313514,95352.0,95349.0,0.00688723]
[1768660023894,0.03313514,95352.0,95348.0,0.06292722]
[1768660023895,0.01048756,95351.0,95348.0,0.01048789]
[1768660025844,0.01048756,95351.0,95345.0,0.06292899]
[1768660026128,0.03313514,95352.0,95348.0,0.01048789]
[1768660026329,0.01048745,95352.0,95348.0,0.01048789]
[1768660026471,0.02264769,95355.0,95352.0,0.01048745]
[1768660026678,0.02269728,95355.0,95352.0,0.0629246]
[1768660026885,0.12708,95354.0,95349.0,0.01048778]
[1768660027084,0.12708,95354.0,95350.0,0.05243788]
[1768660027480,0.12708,95354.0,95351.0,0.05243772]
[1768660028272,0.12708,95354.0,95351.0,0.06292528]
[1768660029420,0.13756723,95354.0,95351.0,0.01048756]
[1768660030590,0.13756723,95354.0,95350.0,0.06292557]
[1768660031015,0.13756723,95354.0,95350.0,0.0629256]
[1768660031240,0.13756723,95354.0,95351.0,0.01048756]
[1768660033894,0.12708,95354.0,95351.0,0.06292508]
[1768660034485,0.12708,95354.0,95351.0,0.06292534]
[1768660034709,0.12708,95354.0,95351.0,0.01048756]
[1768660035151,0.12708,95354.0,95351.0,0.06166298]
[1768660035366,0.13756723,95354.0,95351.0,0.0092253]
[1768660036781,0.13756723,95354.0,95351.0,0.06166312]
[1768660037466,0.13756723,95354.0,95351.0,0.0092253]
[1768660038092,0.12708,95354.0,95351.0,0.0092253]
[1768660039435,0.12712959,95355.0,95352.0,0.01048745]
[1768660039673,0.12712959,95355.0,95352.0,0.06292432]
[1768660045282,0.14977104,95355.0,95352.0,0.06292432]
[1768660049118,0.14977104,95355.0,95352.0,0.01048745]
[1768660049555,0.21269384,95355.0,95352.0,0.01048745]
[1768660050016,0.19005239,95355.0,95350.0,0.06166295]
[1768660051360,0.19005239,95355.0,95352.0,0.01048745]
[1768660051579,0.13761671,95355.0,95352.0,0.01048745]
[1768660053036,0.13761671,95355.0,95352.0,0.01039694]
[1768660056268,0.19005261,95355.0,95351.0,0.01048756]
[1768660056443,0.05411459,95357.0,95352.0,0.01048745]
[1768660056654,0.06291961,95360.0,95355.0,0.01048712]
[1768660056861,0.01048668,95359.0,95355.0,0.01048712]
[1768660057021,0.01048657,95360.0,95356.0,0.01048701]
[1768660057247,0.06291947,95360.0,95356.0,0.01048701]
[1768660057446,0.01048668,95359.0,95355.0,0.01048712]
[1768660057846,0.01048679,95358.0,95353.0,0.06292404]
[1768660058563,0.0104869,95357.0,95354.0,0.01048723]
[1768660058773,0.0104869,95357.0,95354.0,0.01039672]
[1768660059355,0.0104869,95357.0,95354.0,0.01030621]
[1768660062720,0.06292144,95357.0,95354.0,0.01030621]
[1768660065667,0.0104869,95357.0,95354.0,0.01030621]
[1768660065862,0.0104869,95357.0,95354.0,0.0102157]
[1768660068796,0.06292147,95357.0,95353.0,0.01048734]
[1768660069700,0.0104869,95357.0,95353.0,0.01048734]
[1768660069905,0.0104869,95357.0,95353.0,0.062924]
[1768660072774,0.0104869,95357.0,95354.0,0.01048723]
[1768660072926,0.0104869,95357.0,95354.0,0.01039672]
[1768660078986,0.0104869,95357.0,95354.0,0.01030621]
[1768660082288,0.06292169,95357.0,95353.0,0.01048734]
[1768660083787,0.0104869,95357.0,95353.0,0.06292401]
[1768660084700,0.01048701,95356.0,95353.0,0.01048734]
[1768660084910,0.01048701,95356.0,95353.0,0.06292405]
[1768660085532,0.01048701,95356.0,95353.0,0.01048734]
[1768660086905,0.02263204,95357.0,95354.0,0.01048723]
[1768660087510,0.02263204,95357.0,95355.0,0.05243552]
[1768660087674,0.02263204,95358.0,95354.0,0.06292336]
[1768660087876,0.02263204,95357.0,95354.0,0.06292336]
[1768660088120,0.02263204,95358.0,95355.0,0.01048712]
[1768660088300,0.02263204,95357.0,95354.0,0.06292336]
[1768660089206,0.02263204,95357.0,95355.0,0.01048712]
[1768660090910,0.02263204,95357.0,95354.0,0.01048723]
[1768660091784,0.02263204,95357.0,95354.0,0.06292318]
[1768660093203,0.02263204,95357.0,95355.0,0.05243557]
[1768660094453,0.02263204,95357.0,95354.0,0.06292328]
[1768660096893,0.02263204,95357.0,95355.0,0.0524354]
[1768660097096,0.02263204,95358.0,95355.0,0.06292252]
[1768660097292,0.02263204,95357.0,95355.0,0.06292252]
[1768660097498,0.02263204,95358.0,95355.0,0.06292252]
[1768660097675,0.02263204,95357.0,95355.0,0.06292252]
[1768660097881,0.02263204,95358.0,95355.0,0.06292252]
[1768660098097,0.02263204,95357.0,95355.0,0.06292252]
[1768660098358,0.02263204,95358.0,95355.0,0.06292252]
[1768660098572,0.02263204,95357.0,95355.0,0.06292252]
[1768660098784,0.02263204,95358.0,95355.0,0.06292252]
[1768660099019,0.01048668,95359.0,95355.0,0.06292252]
[1768660099020,0.02263204,95357.0,95355.0,0.06292252]
[1768660099224,0.02263204,95358.0,95355.0,0.06292252]
[1768660099423,0.02263204,95357.0,95355.0,0.06292252]
[1768660099637,0.02263204,95358.0,95355.0,0.06292252]
[1768660099852,0.02263204,95357.0,95355.0,0.06292252]
[1768660100065,0.02263204,95358.0,95355.0,0.06292252]
[1768660100309,0.02263204,95357.0,95355.0,0.06292252]
[1768660100497,0.02263204,95358.0,95355.0,0.06292252]
[1768660100650,0.02263204,95357.0,95355.0,0.06292252]
[1768660100857,0.02263204,95358.0,95355.0,0.06292252]
[1768660101054,0.02263204,95357.0,95355.0,0.06292252]
[1768660101265,0.02263204,95358.0,95355.0,0.06292252]
[1768660101468,0.02263204,95357.0,95355.0,0.06292252]
[1768660101690,0.02263204,95358.0,95355.0,0.06292252]
[1768660101897,0.02263204,95357.0,95355.0,0.06292252]
[1768660102121,0.02263204,95358.0,95355.0,0.06292252]
[1768660102296,0.02263204,95357.0,95355.0,0.06292252]
[1768660102483,0.02263204,95358.0,95355.0,0.06292252]
[1768660102676,0.02263204,95357.0,95355.0,0.06292252]
[1768660102888,0.02263204,95358.0,95355.0,0.06292252]
[1768660103089,0.02263204,95357.0,95355.0,0.06292252]
[1768660103493,0.01048668,95359.0,95355.0,0.0062915]
[1768660103954,0.01048668,95359.0,95356.0,0.01048701]
[1768660104406,0.03311872,95359.0,95356.0,0.01048701]
[1768660106283,0.02263204,95359.0,95356.0,0.06292204]
[1768660106956,0.03311872,95359.0,95356.0,0.01048701]
[1768660107183,0.02263204,95359.0,95356.0,0.01048701]
[1768660107403,0.02263204,95360.0,95356.0,0.01048701]
[1768660107826,0.01048668,95359.0,95356.0,0.01048701]
[1768660109217,0.01048602,95365.0,95361.0,0.05243223]
[1768660109388,0.01048602,95365.0,95360.0,0.26356221]
[1768660109389,0.01048558,95369.0,95363.0,0.25307564]
[1768660109592,0.05242965,95366.0,95363.0,0.25307564]
[1768660109729,0.01048591,95366.0,95363.0,0.25307564]
[1768660110537,0.0104858,95367.0,95363.0,0.31599308]
[1768660110651,0.0104858,95367.0,95363.0,0.26356188]
[1768660110856,0.01048591,95366.0,95363.0,0.26356188]
[1768660111262,0.01048591,95366.0,95363.0,0.25307564]
[1768660112612,0.06291581,95366.0,95363.0,0.25307564]
[1768660112831,0.05243015,95365.0,95363.0,0.25307564]
[1768660113278,0.01048558,95369.0,94261.0,0.002]
[1768660113279,0.02830552,95382.0,95370.0,0.01048547]
[1768660113493,0.01048448,95379.0,95375.0,0.01048492]
[1768660113918,0.12708,95379.0,95376.0,0.06290839]
[1768660114117,0.0001602,95381.0,95379.0,0.05242238]
[1768660114366,0.12708,95385.0,95382.0,0.01048415]
[1768660114574,0.1585378,95385.0,95382.0,0.01048415]
[1768660114820,0.1585378,95385.0,95380.0,0.06290578]
[1768660115020,0.13756382,95385.0,95381.0,0.01048426]
[1768660115223,0.01048393,95384.0,95379.0,0.01048448]
[1768660115640,0.01048404,95383.0,95378.0,0.01048459]
[1768660115846,0.01048415,95382.0,95378.0,0.01048459]
[1768660118773,0.01048404,95383.0,95378.0,0.01048459]
[1768660119170,0.01048415,95382.0,95378.0,0.01048459]
[1768660119426,0.01048404,95383.0,95379.0,0.01048448]
[1768660120037,0.01048393,95384.0,95380.0,0.01048437]
[1768660120612,0.01048404,95383.0,95377.0,0.0104847]
[1768660120828,0.01048404,95383.0,95379.0,0.01048448]
[1768660121026,0.01048382,95385.0,95379.0,0.01048448]
[1768660121246,0.01048393,95384.0,95379.0,0.01048448]
[1768660121648,0.01048371,95386.0,95381.0,0.01048426]
[1768660121887,0.01048481,95387.0,95383.0,0.01048404]
[1768660122118,0.02096841,95387.0,95382.0,0.01048415]
[1768660122315,0.07338655,95387.0,95382.0,0.01048415]
[1768660123139,0.01048382,95385.0,95381.0,0.01048426]
[1768660123363,0.01048393,95384.0,95381.0,0.01048426]
[1768660124406,0.0001602,95400.0,95397.0,0.0104825]
[1768660124605,0.0001602,95400.0,95391.0,0.01048316]
[1768660124606,0.01064238,95400.0,95394.0,0.01048283]
[1768660124777,0.01048229,95399.0,95391.0,0.01048316]
[1768660124987,0.25168957,95399.0,95394.0,0.01048283]
[1768660125191,0.26217186,95399.0,95392.0,0.01048305]
[1768660125396,0.0104825,95397.0,95390.0,0.01048327]
[1768660125806,0.0104825,95397.0,95391.0,0.0524157]
[1768660126015,0.0104824,95398.0,95394.0,0.01048283]
[1768660126607,0.0105826,95398.0,95394.0,0.01048283]
[1768660127241,0.0001002,95398.0,95395.0,0.01048272]
[1768660127466,0.0104825,95397.0,95388.0,0.01048349]
[1768660127780,0.01048283,95394.0,95388.0,0.01048349]
[1768660127983,0.01048283,95394.0,95389.0,0.0524167]
[1768660128366,0.01048261,95396.0,95392.0,0.01048305]
[1768660128568,0.01058281,95396.0,95392.0,0.01048305]
[1768660128812,0.25168957,95428.0,95387.0,0.24872907]
[1768660128957,0.01048075,95413.0,95407.0,0.06288823]
[1768660129175,0.01066054,95414.0,95409.0,0.01048119]
[1768660129373,0.0001799,95414.0,95410.0,0.0524054]
[1768660129576,0.0001799,95414.0,95410.0,0.05240531]
[1768660129910,0.0001799,95414.0,95411.0,0.05240485]
[1768660130120,0.25168957,95443.0,95415.0,0.01048053]
[1768660130333,0.25168957,95443.0,95410.0,0.12307387]
[1768660130334,0.0001799,95424.0,95420.0,0.01047998]
[1768660130704,0.25186947,95424.0,95421.0,0.01047987]
[1768660131462,0.25191674,95424.0,95421.0,0.01047987]
[1768660132449,0.25191674,95424.0,95421.0,0.06287906]
[1768660133282,0.25191674,95424.0,95420.0,0.01047998]
[1768660133467,0.26239628,95424.0,95419.0,0.01048009]
[1768660133669,0.29557456,95423.0,95419.0,0.01048009]
[1768660133874,0.30605421,95423.0,95420.0,0.01047998]
[1768660134073,0.30605421,95423.0,95419.0,0.01048009]
[1768660135754,0.01047976,95422.0,95418.0,0.0104802]
[1768660135957,0.01047987,95421.0,95417.0,0.01048031]
[1768660138883,0.01048009,95419.0,95412.0,0.01048086]
[1768660139093,0.01048042,95416.0,95412.0,0.01048086]
[1768660139491,0.01048053,95415.0,95412.0,0.01048086]
[1768660139692,0.01048053,95415.0,95410.0,0.18992641]
[1768660139903,0.01048053,95415.0,95411.0,0.01048097]
[1768660140463,0.01048053,95415.0,95407.0,0.05240686]
[1768660140464,0.30605553,95411.0,95404.0,0.01048174]
[1768660140664,0.01048108,95410.0,95405.0,0.01048163]
[1768660140939,0.01048119,95409.0,95405.0,0.01048163]
[1768660141499,0.01048108,95410.0,95406.0,0.01048152]
[1768660142147,0.01048108,95410.0,95401.0,0.01048207]
[1768660142148,0.30605619,95405.0,95401.0,0.01048207]
[1768660142350,0.30587893,95405.0,95401.0,0.01048207]
[1768660142919,0.29557456,95405.0,95402.0,0.01048196]
[1768660143071,0.29557456,95405.0,95402.0,0.0628916]
[1768660143273,0.29557456,95405.0,95402.0,0.01048196]
[1768660145315,0.30605619,95405.0,95402.0,0.01048196]
[1768660145905,0.01048185,95403.0,95399.0,0.01048229]
[1768660146121,0.01048174,95404.0,95399.0,0.01048229]
[1768660146314,0.01048174,95404.0,95400.0,0.01048218]
[1768660146517,0.30605619,95405.0,95401.0,0.01048207]
[1768660146736,0.01048174,95404.0,95399.0,0.01048229]
[1768660146942,0.35846511,95404.0,95399.0,0.01048229]
[1768660147167,0.3060563,95404.0,95399.0,0.01048229]
[1768660147370,0.3060563,95404.0,95400.0,0.01048218]
[1768660147925,0.01048185,95403.0,95400.0,0.01048218]
[1768660148469,0.01048218,95400.0,95397.0,0.0005075]
[1768660148672,0.01048207,95401.0,95397.0,0.05291996]
[1768660148835,0.01048207,95401.0,95397.0,0.0005075]
[1768660149348,0.01048218,95400.0,95397.0,0.01099]
[1768660149745,0.01048218,95400.0,95397.0,0.0005075]
[1768660151624,0.01048218,95400.0,95397.0,0.01099]
[1768660151770,0.0628935,95400.0,95397.0,0.0005075]
[1768660152204,0.06289327,95400.0,95397.0,0.0005075]
[1768660153856,0.01048218,95400.0,95397.0,0.0005075]
[1768660154056,0.06289311,95400.0,95397.0,0.0005075]
[1768660155332,0.01048218,95400.0,95397.0,0.0005075]
[1768660155698,0.01048218,95400.0,95392.0,0.01048305]
[1768660155699,0.01048272,95395.0,95390.0,0.06289959]
[1768660155818,0.01048272,95395.0,95390.0,0.07338177]
[1768660156024,0.01048272,95395.0,95390.0,0.01048327]
[1768660156435,0.0104824,95398.0,95392.0,0.01048305]
[1768660156827,0.0104824,95398.0,95392.0,0.01062496]
[1768660157261,0.06289488,95398.0,95392.0,0.0630402]
[1768660158314,0.0104825,95397.0,95393.0,0.01048294]
[1768660158520,0.0104825,95397.0,95392.0,0.00014191]
[1768660158521,0.01048272,95395.0,95392.0,0.00014191]
[1768660158740,0.01048229,95399.0,95392.0,0.00014191]
[1768660158741,0.127,95413.0,95412.0,0.01048086]
[1768660158962,0.0001799,95424.0,95412.0,0.01048086]
[1768660158963,0.02260421,95420.0,95417.0,0.01048031]
[1768660159164,0.01047987,95421.0,95417.0,0.01048031]
[1768660159370,0.127,95419.0,95418.0,0.05240101]
[1768660159569,0.127,95419.0,95417.0,0.01048031]
[1768660159774,0.0001799,95424.0,95418.0,0.0104802]
[1768660159979,0.127,95423.0,95422.0,0.05239881]
[1768660160157,0.01047899,95429.0,95424.0,0.01047954]
[1768660160158,0.127,95426.0,95424.0,0.01047954]
[1768660160296,0.127,95426.0,95424.0,0.06287713]
[1768660161116,0.12747284,95426.0,95424.0,0.06287713]
[1768660161526,0.12747284,95426.0,95424.0,0.01047954]
[1768660161927,0.12747284,95426.0,95424.0,0.06287694]
[1768660162335,0.12747284,95426.0,95424.0,0.01047954]
[1768660163588,0.12747284,95426.0,95423.0,0.01047965]
[1768660164648,0.00047284,95426.0,95423.0,0.01047965]
[1768660164935,0.00047284,95426.0,95424.0,0.05239771]
[1768660165152,0.00047284,95426.0,95425.0,0.05239717]
[1768660166547,0.127,95430.0,95427.0,0.01040124]
[1768660166728,0.127,95430.0,95428.0,0.05239552]
[1768660167092,0.01047866,95432.0,95429.0,0.01047899]
[1768660167304,1e-08,95440.0,95437.0,0.01047811]
[1768660168360,0.01047789,95439.0,95436.0,0.01047822]
[1768660168770,0.00061971,95437.0,95436.0,0.01047822]
[1768660169949,0.00061971,95437.0,95435.0,0.020956]
[1768660170166,0.01047789,95439.0,95435.0,0.07334766]
[1768660170370,0.01047789,95439.0,95435.0,0.020956]
[1768660170569,0.01047789,95439.0,95436.0,0.01047822]
[1768660171813,0.01047789,95439.0,95435.0,0.01047833]
[1768660172110,0.0628674,95439.0,95435.0,0.01047833]
[1768660172312,0.010478,95438.0,95433.0,0.06287119]
[1768660172555,0.01047811,95437.0,95434.0,0.01047844]
[1768660172758,0.010478,95438.0,95435.0,0.01047833]
[1768660173293,0.010478,95438.0,95434.0,0.01047844]
[1768660173501,0.01047789,95439.0,95436.0,0.01047822]
[1768660174184,0.01047789,95439.0,95435.0,0.01047833]
[1768660174393,0.01047789,95439.0,95436.0,0.01047822]
[1768660175435,0.010478,95438.0,95434.0,0.01047844]
[1768660175802,0.00061073,95435.0,95434.0,0.01047844]
[1768660176208,0.00061073,95435.0,95434.0,0.06287049]
[1768660177526,0.00061073,95435.0,95434.0,0.01047844]
[1768660177752,0.00061073,95435.0,95433.0,0.01047855]
[1768660177905,0.01047811,95437.0,95434.0,0.01047844]
[1768660178744,1e-08,95440.0,95436.0,0.01047822]
[1768660179051,1e-08,95440.0,95437.0,0.05239058]
[1768660179191,1e-08,95440.0,95438.0,0.05238996]
[1768660180789,1e-08,95440.0,95436.0,0.01047822]
[1768660182080,1e-08,95440.0,95437.0,0.01047811]
[1768660182081,0.01047779,95440.0,95437.0,0.01047811]
[1768660182681,0.010478,95438.0,95434.0,0.01047844]
[1768660182838,0.010478,95438.0,95435.0,0.01047833]
[1768660183901,0.06286814,95438.0,95434.0,0.01047844]
[1768660184130,0.01047811,95437.0,95434.0,0.01047844]
[1768660184313,0.00061073,95435.0,95434.0,0.01047844]
[1768660185683,0.00061073,95435.0,95433.0,0.01047855]
[1768660185888,0.01047811,95437.0,95433.0,0.01047855]
[1768660186990,0.01047833,95435.0,95432.0,0.01047866]
[1768660187407,0.01047822,95436.0,95432.0,0.01047866]
[1768660188846,0.01047822,95436.0,95432.0,0.06287195]
[1768660189871,0.01047822,95436.0,95433.0,0.01047855]
[1768660190186,0.01047833,95435.0,95432.0,0.01047866]
[1768660190403,0.01047844,95434.0,95429.0,0.13747899]
[1768660190604,0.01047877,95431.0,95428.0,0.0104791]
[1768660191495,0.01047866,95432.0,95428.0,0.0104791]
[1768660191496,0.01047866,95432.0,95429.0,0.06287386]
[1768660191725,0.01047855,95433.0,95429.0,0.06287386]
[1768660191912,0.01047844,95434.0,95430.0,0.06287315]
[1768660192275,0.01047844,95434.0,95431.0,0.01047877]
[1768660193156,0.06286946,95436.0,95431.0,0.0628725]
[1768660193358,0.01047855,95433.0,95427.0,0.01047921]
[1768660193553,0.29922325,95432.0,95428.0,0.0104791]
[1768660193813,0.01047855,95433.0,95428.0,0.0104791]
[1768660194015,0.01047855,95433.0,95428.0,0.06287453]
[1768660194816,0.06287142,95433.0,95428.0,0.06287453]
[1768660194997,0.01047844,95434.0,95430.0,0.01047888]
[1768660195398,0.01047822,95436.0,95431.0,0.01047877]
[1768660195603,0.01047833,95435.0,95432.0,0.01047866]
[1768660195798,0.01047844,95434.0,95430.0,0.01047888]
[1768660195983,0.06287109,95434.0,95430.0,0.01047888]
[1768660196390,0.01047866,95432.0,95429.0,0.01047899]
[1768660196976,0.00058828,95430.0,95429.0,0.01047899]
[1768660198252,0.00058828,95430.0,95403.0,0.15391597]
[1768660198253,0.01047954,95424.0,95403.0,0.15391597]
[1768660198396,0.01047954,95424.0,95419.0,0.01048009]
[1768660198397,0.29922325,95422.0,95419.0,0.01048009]
[1768660198598,0.29922325,95422.0,95420.0,0.05239976]
[1768660198904,0.01047954,95424.0,95419.0,0.01048009]
[1768660198905,0.01047965,95423.0,95419.0,0.01048009]
[1768660199307,0.01047965,95423.0,95420.0,0.01047998]
[1768660199506,0.30970279,95424.0,95420.0,0.0628797]
[1768660199731,0.29922325,95424.0,95421.0,0.01047987]
[1768660200627,0.36210063,95424.0,95420.0,0.01047998]
[1768660201038,0.30970279,95424.0,95420.0,0.01047998]
[1768660201419,0.01048119,95409.0,95403.0,0.16439782]
[1768660201613,0.01048119,95409.0,95404.0,0.05240863]
[1768660201811,0.01048119,95409.0,95405.0,0.01048163]
[1768660202036,0.01048119,95409.0,95405.0,0.0628896]
[1768660202234,0.29922325,95410.0,95407.0,0.01048141]
[1768660202536,0.29922325,95410.0,95408.0,0.05240601]
[1768660202740,0.29922325,95413.0,95410.0,0.01048108]
[1768660202942,0.01047998,95420.0,95416.0,0.01048042]
[1768660203089,0.12696,95419.0,95416.0,0.0633553]
[1768660203290,0.12696,95419.0,95417.0,0.01048031]
[1768660203494,0.13744009,95419.0,95416.0,0.00047284]
[1768660203693,0.05240112,95418.0,95416.0,0.00047284]
[1768660204095,0.00052992,95417.0,95416.0,0.00047284]
[1768660205172,0.06288385,95414.0,95409.0,0.01048119]
[1768660205377,7.926e-05,95414.0,95412.0,0.01048086]
[1768660205753,0.0105599,95414.0,95409.0,0.01048119]
[1768660205927,7.926e-05,95414.0,95409.0,0.20026119]
[1768660206313,7.926e-05,95414.0,95411.0,0.05240462]
[1768660206698,7.926e-05,95414.0,95410.0,0.05240499]
[1768660206927,7.926e-05,95414.0,95411.0,0.05240477]
[1768660207341,7.926e-05,95414.0,95411.0,0.06288574]
[1768660208299,0.127,95423.0,95420.0,0.01047998]
[1768660208494,0.127,95423.0,95420.0,0.06287961]
[1768660208813,0.127,95423.0,95420.0,0.01047998]
[1768660209395,0.127,95423.0,95418.0,0.06288109]
[1768660209705,0.01047976,95422.0,95418.0,0.06288115]
[1768660209930,0.13747965,95423.0,95420.0,0.01047998]
[1768660210151,0.06287541,95427.0,95421.0,0.01047987]
[1768660210152,0.13747921,95427.0,95421.0,0.01047987]
[1768660210371,0.01047921,95427.0,95421.0,0.01047987]
[1768660210578,0.01047899,95429.0,95424.0,0.01047954]
[1768660210774,0.01047888,95430.0,95426.0,0.01047932]
[1768660210931,0.00056584,95425.0,95423.0,0.01047965]
[1768660211133,0.01047943,95425.0,95422.0,0.01047976]
[1768660213017,0.05239771,95424.0,95419.0,0.01048009]
[1768660213221,0.01047932,95426.0,95420.0,0.01047998]
[1768660213582,0.01047932,95426.0,95421.0,0.05239884]
[1768660213701,0.01047932,95426.0,95422.0,0.05239853]
[1768660213910,0.06287595,95426.0,95422.0,0.01047976]
[1768660214368,0.06287595,95426.0,95421.0,0.01047987]
[1768660214369,0.06287661,95425.0,95421.0,0.01047987]
[1768660214771,0.01047976,95422.0,95419.0,0.01048009]
[1768660214927,0.01047987,95421.0,95417.0,0.01048031]
[1768660215142,0.01047987,95421.0,95418.0,0.0104802]
[1768660216100,0.01047998,95420.0,95414.0,0.01048064]
[1768660216337,0.01048009,95419.0,95415.0,0.06288305]
[1768660216745,0.00052542,95416.0,95415.0,0.06288305]
[1768660217986,0.29974867,95416.0,95401.0,0.127]
[1768660218186,0.26294382,95416.0,95408.0,0.0104813]
[1768660218375,0.01048097,95411.0,95408.0,0.0104813]
[1768660218572,0.01048097,95411.0,95407.0,0.01048141]
[1768660219330,0.29922325,95414.0,95409.0,0.01048119]
[1768660219507,0.01048042,95416.0,95412.0,0.01048086]
[1768660220841,0.01048053,95415.0,95411.0,0.01048097]
[1768660221570,0.01048053,95415.0,95410.0,0.01048108]
[1768660221571,0.01048064,95414.0,95410.0,0.01048108]
[1768660222614,0.00695724,95414.0,95410.0,0.01048108]
[1768660222801,0.00041854,95413.0,95410.0,0.01048108]
[1768660223444,0.00050746,95412.0,95410.0,0.01048108]
[1768660224200,0.00050746,95412.0,95402.0,0.20963915]
[1768660224201,0.00050746,95412.0,95407.0,0.01048141]
[1768660224570,0.00050746,95412.0,95409.0,0.01048119]
[1768660224879,0.06339266,95412.0,95408.0,0.0104813]
[1768660225092,0.02848802,95410.0,95407.0,0.01048141]
[1768660225886,0.3282578,95408.0,95404.0,0.01048174]
[1768660226505,0.3282578,95420.0,95412.0,0.01048086]
[1768660226708,0.01047987,95421.0,95416.0,0.01048042]
[1768660226921,0.01047998,95420.0,95417.0,0.01048031]
[1768660227796,0.01048009,95419.0,95416.0,0.01048042]
[1768660228555,0.01048009,95419.0,95415.0,0.01048053]
[1768660228889,0.0104802,95418.0,95415.0,0.01048053]
[1768660229093,0.3282578,95424.0,95406.0,0.05240705]